fUSD/lending_fUSD_20250515
["ID","MTS","AMOUNT","RATE_DAILY","PERIOD"]
[361138856,1747301484070,-401.38238908,0.0001165,2]
[361138857,1747301484080,-400.0,0.0001165,2]
[361138858,1747301484089,-400.0,0.0001165,2]
[361138859,1747301484099,-400.0,0.0001165,2]
[361138860,1747301484109,-400.0,0.0001165,2]
[361138861,1747301484118,-400.0,0.0001165,2]
[361138862,1747301484130,-196.27219735,0.00011812,2]
[361138863,1747301484141,-250.0,0.00011827,2]
[361138864,1747301484151,-400.0,0.0001191,2]
[361138865,1747301484160,-368.12176867,0.0001191,2]
[361138866,1747301484170,-400.0,0.0001191,2]
[361138867,1747301484182,-400.0,0.0001191,2]
[361138868,1747301484192,-479.09,0.0001191,2]
[361138869,1747301484201,-400.0,0.0001191,2]
[361138870,1747301484211,-400.0,0.0001191,2]
[361138871,1747301484221,-400.0,0.0001191,2]
[361138872,1747301484230,-400.0,0.0001191,2]
[361138873,1747301484240,-400.0,0.0001191,2]
[361138874,1747301484252,-456.33,0.00011911,2]
[361138875,1747301484261,-659.22,0.00011911,2]
[361138876,1747301484271,-400.0,0.00011911,2]
[361138877,1747301484280,-400.0,0.00011911,2]
[361138878,1747301484290,-418.79,0.00011911,2]
[361138879,1747301484300,-426.45,0.00011911,2]
[361138880,1747301484310,-400.0,0.00011911,2]
[361138881,1747301484320,-1363.07,0.00011911,2]
[361138882,1747301484330,-638.54,0.00011911,2]
[361138883,1747301484339,-1376.13,0.00011911,2]
[361138884,1747301484349,-482.04,0.00011912,2]
[361138885,1747301484359,-3724.74,0.00011912,2]
[361138886,1747301484369,-400.0,0.00011912,2]
[361138887,1747301484379,-400.0,0.00011912,2]
[361138888,1747301484392,-1766.73,0.00011912,2]
[361138889,1747301484403,-1066.69,0.00011912,2]
[361138890,1747301484413,-1342.99,0.00011912,2]
[361138891,1747301484423,-400.0,0.00011912,2]
[361138892,1747301484433,-487.73,0.00011912,2]
[361138893,1747301484443,-400.0,0.00011912,2]
[361138894,1747301484453,-671.31,0.00011912,2]
[361138895,1747301484463,-1156.4,0.00011912,2]
[361138896,1747301484473,-956.67,0.00011912,2]
[361138897,1747301484483,-660.77,0.00011912,2]
[361138898,1747301484493,-400.0,0.00011912,2]
[361138899,1747301484504,-2635.91,0.00011912,2]
[361138900,1747301484514,-400.0,0.00011912,2]
[361138901,1747301484524,-452.53,0.00011912,2]
[361138902,1747301484534,-2230.92,0.00011912,2]
[361138903,1747301484543,-546.20547547,0.00011912,2]
[361138904,1747301484553,-400.0,0.00011912,2]
[361138905,1747301484563,-498.73,0.00011912,2]
[361138906,1747301484573,-968.27,0.00011912,2]
[361138907,1747301484583,-400.0,0.00011912,2]
[361138908,1747301484593,-418.14,0.00011912,2]
[361138909,1747301484603,-400.0,0.00011912,2]
[361138910,1747301484612,-1909.09,0.00011912,2]
[361138911,1747301484622,-559.73,0.00011912,2]
[361138912,1747301484632,-638.58,0.00011912,2]
[361138913,1747301484645,-400.0,0.00011912,2]
[361138914,1747301484655,-4304.42,0.00011912,2]
[361138915,1747301484664,-617.27,0.00011912,2]
[361138916,1747301484673,-400.0,0.00011912,2]
[361138917,1747301484682,-400.0,0.00011912,2]
[361138918,1747301484693,-11850.48,0.00011912,2]
[361138919,1747301484702,-430.26,0.00011912,2]
[361138920,1747301484711,-340.40527236,0.00011924,2]
[361138921,1747301484721,-400.0,0.00011924,2]
[361138922,1747301484730,-400.0,0.00011924,2]
[361138923,1747301484740,-435.02,0.00011924,2]
[361138924,1747301484749,-481.79,0.00011924,2]
[361138925,1747301484758,-400.0,0.00011924,2]
[361138926,1747301484767,-400.0,0.00011924,2]
[361138927,1747301484776,-400.0,0.00011924,2]
[361138928,1747301484787,-444.38842657,0.00011924,2]
[361138929,1747301484796,-400.0,0.00011924,2]
[361138930,1747301484805,-400.0,0.00011924,2]
[361138931,1747301484815,-400.0,0.00011924,2]
[361138932,1747301484824,-400.0,0.00011924,2]
[361138933,1747301484834,-400.0,0.00011924,2]
[361138934,1747301484843,-151.0,0.0001193,2]
[361138935,1747301484853,-151.0,0.0001193,2]
[361138936,1747301484864,-500.0,0.00011973,2]
[361138937,1747301484874,-500.0,0.00011973,2]
[361138938,1747301484884,-500.0,0.00011973,2]
[361138939,1747301484898,-500.0,0.00011973,2]
[361138940,1747301484908,-500.0,0.00011973,2]
[361138941,1747301484918,-587.7869567,0.0001199,2]
[361138942,1747301484927,-1177.0,0.00012,2]
[361138943,1747301484937,-441700.72001095,0.00012,2]
[361138944,1747301484947,-1000.0,0.00012,2]
[361138945,1747301484957,-170038.00380925,0.00012,2]
[361138946,1747301484967,-121115.69873074,0.00012,2]
[361138947,1747301485056,-401.25,0.00011638,2]
[361138948,1747301485067,-2166.8399983,0.00012,2]
[361138949,1747301485080,-957.28813669,0.00012,2]
[361138950,1747301485130,-222390.43423459,0.00012,2]
[361138951,1747301485160,-1008.7227801,0.00012,2]
[361138952,1747301485172,-35774.97114597,0.00012,2]
[361138953,1747301485261,-138.00524911,0.00011376,2]
[361138954,1747301544284,-867.581749,0.00010903,2]
[361138955,1747301544311,-223.250658,0.00010958,2]
[361138956,1747301544340,-811.958315,0.00010958,2]
[361138957,1747301544367,-153.281254,0.00010958,2]
[361138958,1747301544392,-200.0,0.00011036,2]
[361138959,1747301544419,-223.250658,0.00011114,2]
[361138960,1747301544447,-811.958315,0.00011114,2]
[361138961,1747301544474,-223.250658,0.00011116,2]
[361138962,1747301544500,-811.958315,0.00011116,2]
[361138963,1747301544527,-200.0,0.00011136,2]
[361138964,1747301544554,-223.250658,0.00011227,2]
[361138965,1747301544581,-153.281254,0.00011227,2]
[361138966,1747301544609,-811.958315,0.00011227,2]
[361138967,1747301544634,-5000.0,0.00011264,2]
[361138968,1747301544662,-604.41,0.00011363,2]
[361138969,1747301544692,-400.0,0.00011363,2]
[361138970,1747301544720,-400.0,0.00011363,2]
[361138971,1747301544748,-400.0,0.00011363,2]
[361138972,1747301544775,-400.0,0.00011363,2]
[361138973,1747301544800,-485.52,0.00011363,2]
[361138974,1747301544831,-988.47,0.00011363,2]
[361138975,1747301545068,-400.0,0.00011363,2]
[361138976,1747301545096,-525.96,0.00011363,2]
[361138977,1747301545122,-160.9482486,0.00011363,2]
[361138978,1747301545148,-2703.8,0.00011364,2]
[361138979,1747301545175,-400.0,0.00011364,2]
[361138980,1747301545205,-400.0,0.00011364,2]
[361138981,1747301545231,-400.0,0.00011364,2]
[361138982,1747301545257,-204.34526897,0.00011364,2]
[361138983,1747301545283,-725.97,0.00011364,2]
[361138984,1747301545308,-1333.76,0.00011364,2]
[361138985,1747301545333,-755.81,0.00011364,2]
[361138986,1747301545360,-400.0,0.00011364,2]
[361138987,1747301545387,-400.0,0.00011364,2]
[361138988,1747301545413,-400.0,0.00011364,2]
[361138989,1747301545441,-1543.46,0.00011364,2]
[361138990,1747301545468,-400.0,0.00011364,2]
[361138991,1747301545495,-9193.07,0.00011364,2]
[361138992,1747301545521,-400.0,0.00011364,2]
[361138993,1747301545549,-951.42,0.00011364,2]
[361138994,1747301545574,-400.0,0.00011364,2]
[361138995,1747301545601,-1945.32,0.00011364,2]
[361138996,1747301545626,-400.0,0.00011364,2]
[361138997,1747301545653,-400.0,0.00011364,2]
[361138998,1747301545679,-400.0,0.00011364,2]
[361138999,1747301545707,-1273.99,0.00011364,2]
[361139000,1747301545734,-403.75,0.00011364,2]
[361139001,1747301545761,-400.0,0.00011364,2]
[361139002,1747301545787,-714.06,0.00011364,2]
[361139003,1747301545816,-597.23,0.00011364,2]
[361139004,1747301545842,-1279.76,0.00011364,2]
[361139005,1747301545869,-518.35,0.00011364,2]
[361139006,1747301545896,-764.08,0.00011364,2]
[361139007,1747301545921,-400.0,0.00011364,2]
[361139008,1747301545961,-658.03,0.00011364,2]
[361139009,1747301545989,-400.0,0.00011364,2]
[361139010,1747301546016,-400.0,0.00011364,2]
[361139011,1747301546044,-933.35,0.00011364,2]
[361139012,1747301546070,-1545.89,0.00011364,2]
[361139013,1747301546098,-525.96,0.00011375,2]
[361139014,1747301546125,-71.83472989,0.00011376,2]
[361139015,1747301546152,-400.0,0.00011376,2]
[361139016,1747301546179,-209.839979,0.00011376,2]
[361139017,1747301546207,-209.839979,0.00011376,2]
[361139018,1747301546234,-209.839979,0.00011376,2]
[361139019,1747301546258,-209.839979,0.00011376,2]
[361139020,1747301546283,-400.0,0.00011376,2]
[361139021,1747301546308,-500.1512322,0.00011376,2]
[361139022,1747301546333,-400.0,0.00011376,2]
[361139023,1747301546358,-400.0,0.00011376,2]
[361139024,1747301546383,-400.0,0.00011376,2]
[361139025,1747301546408,-400.0,0.00011376,2]
[361139026,1747301546433,-400.0,0.00011376,2]
[361139027,1747301546459,-400.51233991,0.00011376,2]
[361139028,1747301546488,-400.0,0.00011376,2]
[361139029,1747301546515,-400.0,0.00011376,2]
[361139030,1747301546541,-400.0,0.00011376,2]
[361139031,1747301546566,-400.0,0.00011376,2]
[361139032,1747301546592,-401.95210126,0.00011376,2]
[361139033,1747301546617,-400.0,0.00011376,2]
[361139034,1747301546643,-400.0,0.00011376,2]
[361139035,1747301546669,-400.0,0.00011376,2]
[361139036,1747301546697,-400.0,0.00011376,2]
[361139037,1747301546724,-282.93356548,0.00011376,2]
[361139038,1747301546750,-516.11289451,0.00011376,2]
[361139039,1747301546776,-400.0,0.00011376,2]
[361139040,1747301546803,-407.20099829,0.00011376,2]
[361139041,1747301546835,-413.31506197,0.00011376,2]
[361139042,1747301546862,-408.24791675,0.00011376,2]
[361139043,1747301546890,-504.37084204,0.00011376,2]
[361139044,1747301546919,-400.0,0.00011376,2]
[361139045,1747301546951,-400.0,0.00011376,2]
[361139046,1747301546979,-400.0,0.00011376,2]
[361139047,1747301547006,-405.20253511,0.00011376,2]
[361139048,1747301547032,-400.0,0.00011376,2]
[361139049,1747301547058,-400.0,0.00011376,2]
[361139050,1747301547084,-405.3212184,0.00011376,2]
[361139051,1747301547109,-400.0,0.00011376,2]
[361139052,1747301547135,-191.5077289,0.00011376,2]
[361139053,1747301547160,-400.0,0.00011376,2]
[361139054,1747301547184,-400.0,0.00011376,2]
[361139055,1747301547212,-401.4755066,0.00011376,2]
[361139056,1747301547237,-411.63744729,0.00011376,2]
[361139057,1747301547262,-400.0,0.00011376,2]
[361139058,1747301547287,-400.0,0.00011376,2]
[361139059,1747301547311,-404.6293615,0.00011376,2]
[361139060,1747301547336,-401.04018105,0.00011376,2]
[361139061,1747301547361,-400.0,0.00011376,2]
[361139062,1747301547386,-400.0,0.00011376,2]
[361139063,1747301547412,-447.68177679,0.00011381,2]
[361139064,1747301547437,-408.2599379,0.00011381,2]
[361139065,1747301547466,-403.44515585,0.00011381,2]
[361139066,1747301547492,-340.91426015,0.00011381,2]
[361139067,1747301547517,-402.72258947,0.00011381,2]
[361139068,1747301547541,-401.57675851,0.00011381,2]
[361139069,1747301547567,-400.0,0.00011381,2]
[361139070,1747301547593,-525.96,0.00011381,2]
[361139071,1747301547619,-525.96,0.00011381,2]
[361139072,1747301547877,-223.250658,0.00011388,2]
[361139073,1747301547905,-811.958315,0.00011388,2]
[361139074,1747301547928,-223.250658,0.0001139,2]
[361139075,1747301547956,-811.958315,0.0001139,2]
[361139076,1747301547982,-525.96,0.00011486,2]
[361139077,1747301548005,-799.0,0.00011507,2]
[361139078,1747301548029,-629.0,0.00011507,2]
[361139079,1747301548052,-880.0,0.00011549,2]
[361139080,1747301548077,-12294.5519,0.00011556,2]
[361139081,1747301548102,-1147.0,0.00011569,2]
[361139082,1747301548125,-318.247,0.00011569,2]
[361139083,1747301548149,-1457.0,0.00011569,2]
[361139084,1747301548172,-553.0,0.00011569,2]
[361139085,1747301548201,-571.593,0.00011569,2]
[361139086,1747301548226,-400.0,0.00011636,2]
[361139087,1747301548250,-224.56592874,0.00011636,2]
[361139088,1747301548275,-400.0,0.00011636,2]
[361139089,1747301548300,-400.0,0.00011636,2]
[361139090,1747301548324,-400.0,0.00011636,2]
[361139091,1747301548348,-400.0,0.00011636,2]
[361139092,1747301548373,-841.2,0.00011636,2]
[361139093,1747301548397,-250.0,0.00011636,2]
[361139094,1747301548422,-400.0,0.00011636,2]
[361139095,1747301548450,-400.0,0.00011636,2]
[361139096,1747301548475,-400.0,0.00011636,2]
[361139097,1747301548499,-400.0,0.00011636,2]
[361139098,1747301548522,-487.61,0.00011636,2]
[361139099,1747301548547,-400.0,0.00011636,2]
[361139100,1747301548570,-400.0,0.00011636,2]
[361139101,1747301548595,-1037.83,0.00011636,2]
[361139102,1747301548625,-604.41,0.00011637,2]
[361139103,1747301548650,-400.0,0.00011637,2]
[361139104,1747301548675,-400.0,0.00011637,2]
[361139105,1747301548700,-400.0,0.00011637,2]
[361139106,1747301548725,-400.0,0.00011637,2]
[361139107,1747301548750,-485.52,0.00011637,2]
[361139108,1747301548774,-988.47,0.00011637,2]
[361139109,1747301548799,-400.0,0.00011637,2]
[361139110,1747301548827,-400.0,0.00011638,2]
[361139111,1747301548852,-2703.8,0.00011638,2]
[361139112,1747301548876,-400.0,0.00011638,2]
[361139113,1747301548902,-400.0,0.00011638,2]
[361139114,1747301548927,-725.97,0.00011638,2]
[361139115,1747301548952,-1333.76,0.00011638,2]
[361139116,1747301548975,-755.81,0.00011638,2]
[361139117,1747301548999,-400.0,0.00011638,2]
[361139118,1747301549023,-400.0,0.00011638,2]
[361139119,1747301549048,-400.0,0.00011638,2]
[361139120,1747301549073,-1543.46,0.00011638,2]
[361139121,1747301549097,-400.0,0.00011638,2]
[361139122,1747301549121,-9193.07,0.00011638,2]
[361139123,1747301549145,-400.0,0.00011638,2]
[361139124,1747301549171,-951.42,0.00011638,2]
[361139125,1747301549197,-400.0,0.00011638,2]
[361139126,1747301549221,-1945.32,0.00011638,2]
[361139127,1747301549246,-400.0,0.00011638,2]
[361139128,1747301549270,-400.0,0.00011638,2]
[361139129,1747301549295,-400.0,0.00011638,2]
[361139130,1747301549319,-1273.99,0.00011638,2]
[361139131,1747301549343,-400.0,0.00011638,2]
[361139132,1747301549368,-714.06,0.00011638,2]
[361139133,1747301549392,-597.23,0.00011638,2]
[361139134,1747301549416,-1279.76,0.00011638,2]
[361139135,1747301549443,-518.35,0.00011638,2]
[361139136,1747301549468,-764.08,0.00011638,2]
[361139137,1747301549494,-400.0,0.00011638,2]
[361139138,1747301549518,-658.03,0.00011638,2]
[361139139,1747301549545,-400.0,0.00011638,2]
[361139140,1747301549570,-400.0,0.00011638,2]
[361139141,1747301549596,-933.35,0.00011638,2]
[361139142,1747301549621,-1545.89,0.00011638,2]
[361139143,1747301549647,-492.31,0.0001165,2]
[361139144,1747301549671,-400.0,0.0001165,2]
[361139145,1747301549696,-400.0,0.0001165,2]
[361139146,1747301549721,-230.49297171,0.0001165,2]
[361139147,1747301549746,-400.0,0.0001165,2]
[361139148,1747301549777,-400.33388225,0.0001165,2]
[361139149,1747301549807,-400.0,0.0001165,2]
[361139150,1747301549841,-400.0,0.0001165,2]
[361139151,1747301549873,-400.0,0.00011655,2]
[361139152,1747301549905,-207.4,0.00011682,2]
[361139153,1747301549936,-221.12838105,0.00011682,2]
[361139154,1747301549968,-719.52358209,0.00011682,2]
[361139155,1747301550000,-170.0,0.000117,2]
[361139156,1747301550031,-170.0,0.000117,2]
[361139157,1747301550062,-199.777058,0.000119,2]
[361139158,1747301550094,-400.0,0.0001191,2]
[361139159,1747301550130,-400.0,0.0001191,2]
[361139160,1747301550162,-400.0,0.0001191,2]
[361139161,1747301550200,-375.93828848,0.0001191,2]
[361139162,1747301550235,-841.2,0.0001191,2]
[361139163,1747301550267,-250.0,0.0001191,2]
[361139164,1747301550297,-515.22,0.0001191,2]
[361139165,1747301550328,-400.0,0.0001191,2]
[361139166,1747301550359,-400.0,0.0001191,2]
[361139167,1747301550390,-400.0,0.0001191,2]
[361139168,1747301550422,-487.61,0.0001191,2]
[361139169,1747301550464,-400.0,0.0001191,2]
[361139170,1747301550498,-400.0,0.0001191,2]
[361139171,1747301550531,-1037.83,0.0001191,2]
[361139172,1747301550564,-604.41,0.00011911,2]
[361139173,1747301550598,-400.0,0.00011911,2]
[361139174,1747301550630,-400.0,0.00011911,2]
[361139175,1747301550667,-400.0,0.00011911,2]
[361139176,1747301550717,-485.52,0.00011911,2]
[361139177,1747301550753,-988.47,0.00011911,2]
[361139178,1747301550786,-400.0,0.00011911,2]
[361139179,1747301550820,-401.25,0.00011912,2]
[361139180,1747301550856,-400.0,0.00011912,2]
[361139181,1747301550888,-2703.8,0.00011912,2]
[361139182,1747301550924,-511.64,0.00011912,2]
[361139183,1747301550958,-400.0,0.00011912,2]
[361139184,1747301551189,-725.97,0.00011912,2]
[361139185,1747301551252,-1333.76,0.00011912,2]
[361139186,1747301551284,-755.81,0.00011912,2]
[361139187,1747301551320,-400.0,0.00011912,2]
[361139188,1747301551354,-400.0,0.00011912,2]
[361139189,1747301551387,-400.0,0.00011912,2]
[361139190,1747301551422,-1543.46,0.00011912,2]
[361139191,1747301551452,-400.0,0.00011912,2]
[361139192,1747301551487,-9193.07,0.00011912,2]
[361139193,1747301551519,-400.0,0.00011912,2]
[361139194,1747301551552,-951.42,0.00011912,2]
[361139195,1747301551583,-400.0,0.00011912,2]
[361139196,1747301551618,-1945.32,0.00011912,2]
[361139197,1747301551652,-400.0,0.00011912,2]
[361139198,1747301551684,-400.0,0.00011912,2]
[361139199,1747301551723,-1273.99,0.00011912,2]
[361139200,1747301551772,-400.0,0.00011912,2]
[361139201,1747301552224,-383.27846585,0.00011912,2]
[361139202,1747301552271,-714.06,0.00011912,2]
[361139203,1747301552309,-597.23,0.00011912,2]
[361139204,1747301552546,-1279.76,0.00011912,2]
[361139205,1747301552578,-518.35,0.00011912,2]
[361139206,1747301552610,-764.08,0.00011912,2]
[361139207,1747301552643,-400.0,0.00011912,2]
[361139208,1747301552675,-658.03,0.00011912,2]
[361139209,1747301552709,-522.30695289,0.00011912,2]
[361139210,1747301552748,-410.18,0.00011912,2]
[361139211,1747301552789,-933.35,0.00011912,2]
[361139212,1747301552822,-1545.89,0.00011912,2]
[361139213,1747301552855,-461.19205141,0.00011924,2]
[361139214,1747301552886,-400.0,0.00011924,2]
[361139215,1747301552918,-400.0,0.00011924,2]
[361139216,1747301552949,-400.0,0.00011924,2]
[361139217,1747301552983,-400.0,0.00011924,2]
[361139218,1747301553017,-400.0,0.00011929,2]
[361139219,1747301553051,-340.590208,0.0001193,2]
[361139220,1747301553083,-340.590208,0.0001193,2]
[361139221,1747301553115,-151.0,0.0001193,2]
[361139222,1747301553148,-151.0,0.0001193,2]
[361139223,1747301553181,-328.46784619,0.00011973,2]
[361139224,1747301553214,-500.0,0.00011973,2]
[361139225,1747301553257,-504.44490417,0.00011973,2]
[361139226,1747301553291,-256.34591452,0.00011999,2]
[361139227,1747301553324,-379.16,0.00011999,2]
[361139228,1747301553357,-1053.0,0.00012,2]
[361139229,1747301553393,-304399.05466253,0.00012,2]
[361139230,1747301553424,-151.0,0.00012,2]
[361139231,1747301553459,-151.0,0.00012,2]
[361139232,1747301553491,-500.0,0.00012,2]
[361139233,1747301553525,-656360.21580145,0.00012,2]
[361139234,1747301553556,-151.0,0.00012,2]
[361139235,1747301553588,-151.0,0.00012,2]
[361139236,1747301553620,-151.0,0.00012,2]
[361139237,1747301553652,-151.0,0.00012,2]
[361139238,1747301553683,-200.0,0.00012,2]
[361139239,1747301553714,-151.0,0.00012,2]
[361139240,1747301553758,-151.0,0.00012,2]
[361139241,1747301553797,-151.0,0.00012,2]
[361139242,1747301553833,-190.763271,0.00012,2]
[361139243,1747301553867,-407.76724387,0.00012,2]
[361139244,1747301553901,-151.0,0.00012,2]
[361139245,1747301553934,-151.0,0.00012,2]
[361139246,1747301553966,-340.590208,0.00012,2]
[361139247,1747301554018,-340.590208,0.00012,2]
[361139248,1747301554049,-340.590208,0.00012,2]
[361139249,1747301554081,-340.590208,0.00012,2]
[361139250,1747301554116,-340.590208,0.00012,2]
[361139251,1747301554150,-340.590208,0.00012,2]
[361139252,1747301554183,-340.590208,0.00012,2]
[361139253,1747301554216,-340.590208,0.00012,2]
[361139254,1747301554253,-151.0,0.00012,2]
[361139255,1747301554286,-151.0,0.00012,2]
[361139256,1747301554323,-157.802379,0.00012,2]
[361139257,1747301554355,-151.0,0.00012,2]
[361139258,1747301554386,-151.0,0.00012,2]
[361139259,1747301554418,-151.0,0.00012,2]
[361139260,1747301554451,-151.0,0.00012,2]
[361139261,1747301554855,525.96,0.00011637,2]
[361139262,1747301555170,525.96,0.00011649,2]
[361139263,1747301555281,173.817895,0.0001193,2]
[361139264,1747301555328,525.96,0.00011899,2]
[361139265,1747301555444,400.0,0.00011381,2]
[361139266,1747301555501,525.96,0.00011923,2]
[361139267,1747301555577,400.0,0.00011655,2]
[361139268,1747301555633,525.96,0.00011999,2]
[361139269,1747301555694,400.0,0.00011929,2]
[361139270,1747301555762,525.96,0.00011999,2]
[361139271,1747301555833,525.96,0.00011999,2]
[361139272,1747301555907,525.96,0.00011999,2]
[361139273,1747301555969,277.924371,0.00010958,2]
[361139274,1747301556043,1062.6,0.00011364,2]
[361139275,1747301556090,525.96,0.00011999,2]
[361139276,1747301556141,277.924371,0.00011114,2]
[361139277,1747301556182,1062.6,0.00011638,2]
[361139278,1747301556242,525.96,0.00011999,2]
[361139279,1747301556302,1062.6,0.00011912,2]
[361139280,1747301556342,277.924371,0.00011116,2]
[361139281,1747301556382,525.96,0.00011999,2]
[361139282,1747301556470,682.14,0.00011363,2]
[361139283,1747301556514,393.75463726,0.00011376,2]
[361139284,1747301556561,277.924371,0.00011227,2]
[361139285,1747301556603,525.96,0.00011999,2]
[361139286,1747301556654,682.14,0.00011637,2]
[361139287,1747301556702,525.96,0.00011999,2]
[361139288,1747301556752,277.924371,0.00011388,2]
[361139289,1747301556800,682.14,0.00011911,2]
[361139290,1747301556931,277.924371,0.0001139,2]
[361139291,1747301557062,979.86,0.00011364,2]
[361139292,1747301557183,979.86,0.00011638,2]
[361139293,1747301557235,439.75,0.00011999,2]
[361139294,1747301557300,979.86,0.00011912,2]
[361139295,1747301557379,176.78403308,0.00011376,2]
[361139296,1747301557523,416.97,0.00011381,2]
[361139297,1747301557934,439.09,0.00011363,2]
[361139298,1747301557979,5000.0,0.000119,2]
[361139299,1747301558040,439.09,0.00011637,2]
[361139300,1747301558125,439.09,0.00011911,2]
[361139301,1747301558429,400.0,0.00011376,2]
[361139302,1747301558498,824.07,0.00011381,2]
[361139303,1747301558569,824.07,0.00011655,2]
[361139304,1747301558636,824.07,0.00011929,2]
[361139305,1747301558904,244.66034632,0.00012,2]
[361139306,1747301559072,171.28,0.00010931,2]
[361139307,1747301559244,483.25,0.00011364,2]
[361139308,1747301559298,483.25,0.00011638,2]
[361139309,1747301559357,483.25,0.00011912,2]
[361139310,1747301559398,400.0,0.00011999,2]
[361139311,1747301560076,654.78,0.00011364,2]
[361139312,1747301560258,654.78,0.00011638,2]
[361139313,1747301560313,654.78,0.00011912,2]
[361139314,1747301561424,195.72827706,0.00012,2]
[361139315,1747301561525,407.30161677,0.00011376,2]
[361139316,1747301561586,791.27,0.00011363,2]
[361139317,1747301561656,791.27,0.00011637,2]
[361139318,1747301561724,791.27,0.00011911,2]
[361139319,1747301562070,156.58262164,0.00012,2]
[361139320,1747301562143,400.0,0.00011364,2]
[361139321,1747301562381,400.0,0.00011638,2]
[361139322,1747301562477,1952.05,0.00011364,2]
[361139323,1747301562592,400.0,0.00011363,2]
[361139324,1747301562633,400.0,0.00011912,2]
[361139325,1747301562701,151.0,0.00012,2]
[361139326,1747301562741,1952.05,0.00011638,2]
[361139327,1747301562845,400.0,0.00011637,2]
[361139328,1747301563120,400.0,0.00011911,2]
[361139329,1747301563277,400.0,0.00011381,2]
[361139330,1747301563319,1952.05,0.00011912,2]
[361139331,1747301563442,410.23959503,0.00011636,2]
[361139332,1747301563534,400.0,0.00011655,2]
[361139333,1747301563659,400.0,0.00011636,2]
[361139334,1747301563781,400.0,0.00011929,2]
[361139335,1747301563818,151.0,0.00012,2]
[361139336,1747301563928,400.0,0.0001191,2]
[361139337,1747301564182,170.0,0.000119,2]
[361139338,1747301564398,151.0,0.00012,2]
[361139339,1747301565108,173.3304866,0.00012,2]
[361139340,1747301565866,490.95,0.00011376,2]
[361139341,1747301566087,1019.14,0.00011364,2]
[361139342,1747301566122,490.95,0.0001165,2]
[361139343,1747301566315,1019.14,0.00011638,2]
[361139344,1747301566357,490.95,0.00011924,2]
[361139345,1747301566580,1019.14,0.00011912,2]
[361139346,1747301568968,400.0,0.00011364,2]
[361139347,1747301569107,448.45,0.00011999,2]
[361139348,1747301569256,400.0,0.00011638,2]
[361139349,1747301569609,400.0,0.00011636,2]
[361139350,1747301569700,166.85600729,0.00011912,2]
[361139351,1747301573232,1071.38,0.00011364,2]
[361139352,1747301573414,541.87,0.00011364,2]
[361139353,1747301573653,1071.38,0.00011638,2]
[361139354,1747301573710,541.87,0.00011638,2]
[361139355,1747301573754,1071.38,0.00011912,2]